[Event "Plancoet op-A 10th"]
[Site "Plancoet"]
[Date "2013.07.30"]
[Round "2"]
[White "Kukov, Velislav"]
[Black "Vovk, Yuri"]
[Result "1-0"]
[ECO "A16"]
[WhiteElo "2370"]
[BlackElo "2608"]
[Annotator "RR"]
[PlyCount "101"]
[EventDate "2013.07.28"]
[EventType "swiss"]
[EventRounds "9"]
[EventCountry "FRA"]
[SourceTitle "EXT 2017"]
[Source "ChessBase"]
[SourceDate "2016.10.25"]
[SourceVersion "1"]
[SourceVersionDate "2016.10.25"]
[SourceQuality "1"]
[TimeControl "40/5400+30:1800+30"]

1. Nf3 Nf6 2. c4 g6 3. Nc3 d5 4. Qa4+ (4. cxd5) 4... Bd7 5. Qb3 dxc4 6. Qxc4
Bg7 (6... a6 7. d4 b5 8. Qb3 c5 9. dxc5 Bg7 10. e4 O-O 11. Be2 Be6 12. Qc2 Nbd7
13. Be3 Rc8 14. Rd1 b4 15. Nd5 Bxd5 16. exd5 Nxc5 17. O-O a5 18. h3 Nce4 19.
Qb3 Qd6 20. Bb5 Nc5 21. Qc4 Na4 22. Qb3 Nc5 {1/2-1/2 (22) Ivanchuk,V (2766)
-Wang Hao (2737) Beijing 2012}) 7. Ne5 (7. d4) (7. e4) 7... Be6 8. Qb5+ Nbd7 9.
Nxd7 Qxd7 10. Qxd7+ $146 (10. Qxb7 O-O 11. e3 Nd5 12. Bb5 Qd6 13. Qc6 Rab8 14.
Qxd6 exd6 15. Ba4 Nb4 16. O-O c5 17. b3 d5 18. Ba3 d4 19. exd4 Bxd4 20. Rac1
Rfd8 21. Bxb4 cxb4 22. Ne2 Bf5 23. Rfd1 Bb2 24. Rc7 Bd3 25. Nc1 Bf5 26. h3 Rbc8
27. Rxc8 Rxc8 28. Ne2 Rc2 29. Bb5 Bf6 30. Ng3 Rxa2 31. Nxf5 gxf5 32. d4 Kf8 33.
d5 f4 34. Rd3 Bc3 35. d6 Rd2 36. Rxd2 Bxd2 {1/2-1/2 (36) Georgiev,K (2637)
-Neverov,V (2566) Budva 2003}) 10... Kxd7 11. e4 {[%cal Gd2d4]} c5 12. Bb5+ Kc7
13. d3 Ng4 14. f3 Ne5 15. Bf4 Kb6 16. Bxe5 (16. O-O-O Nxf3 $1 {[%cal Gg7c3,
Gb6b5]}) 16... Bxe5 17. Bc4 Bxc4 18. dxc4 Ka5 (18... Bxc3+ $5 19. bxc3 Rad8 20.
Rb1+ (20. Ke2 Rd7 21. Rhd1 Rhd8) 20... Kc7 21. Ke2) 19. O-O-O Rhd8 20. Kc2 e6
21. a3 a6 22. g3 b5 23. f4 Bd4 24. cxb5 axb5 25. e5 {[%csl Rf7,Rh7][%cal Gc3e4,
Ge4d6,Ge4g5]} b4 26. axb4+ Kxb4 27. Ra1 (27. Ne4 Ra2 {[%csl Rb2]}) 27... Kc4
28. Ne4 Rdb8 29. Nd6+ Kd5 30. Rxa8 Rxa8 31. Nxf7 c4 32. Ng5 Rb8 $132 {[%csl
Rb2]} 33. Rb1 Rb3 $2 (33... h6 $142 {Le coup naturel mais les Noirs étaient
peut-être en zeitnot} 34. Nf3 Rb3 35. Nxd4 Kxd4 36. Rd1+ Ke4 37. Rd6 g5 38.
Rxe6 gxf4 39. gxf4 Kxf4 40. Re8 Rh3 41. e6 Ke5 $1 42. e7 Ke6 $11) 34. Nxh7 Ke4
35. Ng5+ Kf5 36. Nf7 Ke4 37. Nd6+ Kd5 38. Ne8 Ke4 39. Nd6+ Kd5 40. Ne8 Ke4 41.
Nd6+ Kd5 42. Nc8 Ke4 43. Ne7 Re3 44. Rd1 Rb3 45. Rb1 Re3 46. Rd1 c3 47. bxc3
Rxc3+ 48. Kd2 Rc7 49. Nxg6 Be3+ 50. Ke1 Rc2 $1 $44 {[%csl Gc2,Re1] Le gain
Blanc n'est pas facile à réaliser} 51. Nh4 {suite illisible - les blancs
gagnent en 61 coups} 1-0

[Event "Rohde op 12th"]
[Site "Sautron"]
[Date "2012.11.02"]
[Round "8"]
[White "Marholev, Dimitar"]
[Black "Le Roux, Jean Pierre"]
[Result "0-1"]
[ECO "A16"]
[WhiteElo "2326"]
[BlackElo "2563"]
[Annotator "RR"]
[PlyCount "60"]
[EventDate "2012.10.27"]
[EventType "swiss"]
[EventRounds "9"]
[EventCountry "FRA"]
[SourceTitle "EXT 2014"]
[Source "ChessBase"]
[SourceDate "2013.11.20"]
[SourceVersion "1"]
[SourceVersionDate "2013.11.20"]
[SourceQuality "1"]
[TimeControl "40/5400+30:1800+30"]
[WhiteClock "1:30:00"]
[BlackClock "1:30:00"]

1. Nf3 {[%emt 0:00:00]} Nf6 {[%emt 0:00:00]} 2. c4 {[%emt 0:00:00]} g6 {
[%emt 0:01:01]} 3. Nc3 {[%emt 0:00:11]} d5 {[%emt 0:00:38]} 4. Qa4+ $5 {
[%emt 0:00:21]} (4. Qb3) (4. cxd5 {L'ancienne ligne qui est moins jouée
aujourd'hui que Qb3} Nxd5 5. Qa4+) 4... Bd7 {[%emt 0:00:10]} 5. Qb3 {[%emt 0:
00:07]} dxc4 {[%emt 0:00:06]} 6. Qxc4 {[%emt 0:00:07]} a6 {[%emt 0:00:34]} (
6... Bg7 7. e4 $14 (7. d4)) 7. e4 {[%emt 0:00:25]} (7. d4 Be6 8. Qa4+ b5 9. Qd1
Bg7 {Tratar,M (2449)-Nepomniachtchi,I (2476) Ljubljana op 15th 2004 (9) 1/2} (
9... Bc8 {Rowson})) 7... b5 {[%emt 0:00:40]} 8. Qe2 {[%emt 0:00:08] Une idée
sophistiquée de B. GELFAND} c5 {[%emt 0:00:22]} (8... Nc6 {[%cal Ge7e5]} 9. e5
Nb4 10. exf6 Nc2+ 11. Kd1 Nxa1 $13 {Sadorra,J (2470)-Kazhgaleyev,M (2641)
Manila Pichay Cup 4th 2008 (2) 0-1}) (8... Bc8) 9. e5 {[%emt 0:00:35]} Nh5 {
[%emt 0:00:16][%cal Gh5f4]} 10. d4 {[%emt 0:00:08]} (10. Qe3 $5 {Kortschnoj,V 
(2579)-Tseitlin,M (2455) Beersheba g/30' rapid 2004 (10) 1-0}) (10. d3) 10...
cxd4 {[%emt 0:00:03] Changeant le premier sur la partie de référence du bulgare
} (10... Bf5 11. dxc5 Nc6 12. Be3 Qa5 13. Nd4 (13. Rd1 $5) 13... Nxd4 14. Bxd4
Rd8 15. Rd1 Bh6 16. g3 b4 17. Qxa6 Qxa6 18. Bxa6 bxc3 19. Bxc3 Rxd1+ 20. Kxd1
Ng7 21. Ke2 Ne6 22. Bb5+ Kd8 23. Rd1+ Kc8 24. b4 Rd8 25. Rxd8+ {Marholev,D 
(2364)-Dourerassou,J (2460)/Dieppe 2012/EXT 2013/0-1 (41)}) 11. Nxd4 {[%emt 0:
00:35]} Nc6 {[%emt 0:00:07]} 12. Nxc6 $6 $146 {[%emt 0:05:52]} (12. Nb3 $142 b4
(12... Qc7 13. f4 $14) 13. Nd5 Bg7 14. Be3 Bxe5 15. Nb6 Rb8 16. Nxd7 Qxd7 17.
Rd1 Bd6 18. Qxa6 Qb7 19. Qxb7 Rxb7 20. Rc1 Nd8 21. g3 O-O 22. Bg2 Rb5 23. O-O
Ne6 24. Rfd1 Nf6 25. h3 h5 26. Nd4 Nxd4 {Ovetchkin,R (2519)-Shivananda,B (2387)
/Mumbai 2010/CBM 136 Extra/1-0 (81)}) 12... Bxc6 $132 {[%emt 0:00:10]} 13. Be3
{[%emt 0:00:14][%cal Ga1d1]} (13. e6 $6 f5) 13... Qc7 $1 {[%emt 0:20:24]} 14.
f4 {[%emt 0:00:51]} (14. Rc1 Qxe5 15. Na4 $13) 14... b4 $36 {[%emt 0:01:10]}
15. Nb1 $6 {[%emt 0:06:31] La position Blanche ne parait pas trés saine} (15.
Nd1 $142 $5 Bh6 16. Rc1 $1 {[%cal Gc1c7]} Qb7 17. Qc2 Bd5 (17... Rc8 18. Bc4
O-O 19. O-O Bb5 20. Qe2 (20. Qb3)) 18. f5 {[%cal Gd1e3]} Bf4 $15) 15... Bh6 $32
{[%emt 0:03:36] Les Noirs ont maintenant un bon jeu de pièces et cette
variante Qb3 qui était sensé donner un centre fort aux Blancs, a
paradoxalement créé des faiblesses centrales.} 16. Qc4 {[%emt 0:07:20]} Qb7 $36
{[%emt 0:01:55]} 17. Rg1 {[%emt 0:01:18]} O-O {[%emt 0:13:04]} 18. g3 {[%emt 0:
16:37]} Bd5 {[%emt 0:05:58][%csl Rc4]} (18... Ng7 {[%csl Re3][%cal Gg7f5]}) 19.
Qd4 {[%emt 0:09:12]} f6 $1 {[%emt 0:14:28][%csl Re1] Il faut ouvrir le jeu} 20.
exf6 {[%emt 0:03:33]} Nxf6 {[%emt 0:02:00]} 21. Bc4 $2 {[%emt 0:01:10]} e5 $19
{[%emt 0:01:37]} 22. Qd3 {[%emt 0:04:10]} exf4 {[%emt 0:01:12]} 23. Bxf4 {
[%emt 0:00:43]} Bxf4 {[%emt 0:03:04]} 24. gxf4 {[%emt 0:00:09]} Rfe8+ {[%emt 0:
02:01]} 25. Kd1 {[%emt 0:00:55]} Bxc4 {[%emt 0:06:26]} 26. Qxc4+ {[%emt 0:00:
08]} Kg7 {[%emt 0:00:06]} 27. Nd2 {[%emt 0:00:26]} Rad8 {[%emt 0:00:02]} 28.
Rc1 {[%emt 0:01:35]} Qf3+ {[%emt 0:00:31]} 29. Kc2 {[%emt 0:00:17]} Rxd2+ {
[%emt 0:00:04]} 30. Kxd2 {[%emt 0:00:14]} Qf2+ {[%emt 0:00:25]} 0-1

[Event "Sautron op 16th"]
[Site "Sautron"]
[Date "2016.10.29"]
[Round "9.2"]
[White "Malakhatko, Vadim"]
[Black "Stany, George Anthony"]
[Result "1/2-1/2"]
[ECO "A16"]
[WhiteElo "2514"]
[BlackElo "2471"]
[Annotator "Sagar Shah"]
[PlyCount "50"]
[EventDate "2016.10.22"]
[EventType "swiss"]
[EventRounds "9"]
[EventCountry "FRA"]
[SourceTitle "EXT 2019"]
[Source "ChessBase"]
[SourceDate "2018.10.10"]
[SourceVersion "1"]
[SourceVersionDate "2018.10.10"]
[SourceQuality "1"]
[TimeControl "40/5400+30:1800+30"]
[WhiteClock "0:03:53"]
[BlackClock "0:22:33"]

1. c4 {[%emt 0:00:00]} Nf6 {[%emt 0:00:00] With five wins and four draws,
Stany remained unbeaten and performed at an Elo of 2577, gaining 13 Elo points
and clinching the top spot} 2. Nc3 {[%emt 0:00:32]} d5 {[%emt 0:00:00]} 3. cxd5
{[%emt 0:00:08]} Nxd5 {[%emt 0:00:00]} 4. g3 {[%emt 0:00:25]} g6 {[%emt 0:00:
00]} 5. Bg2 {[%emt 0:00:06]} Nb6 {[%emt 0:00:00]} 6. d3 {[%emt 0:02:30]} Bg7 {
[%emt 0:00:00]} 7. Be3 {[%emt 0:00:08]} Nc6 {[%emt 0:00:04]} 8. Bxc6+ {[%emt 0:
00:28]} bxc6 {[%emt 0:00:03]} 9. Qc1 {[%emt 0:00:37]} h5 {[%emt 0:00:05]} (9...
h6 10. Nf3 Bh3 11. Nd2 O-O 12. Nde4 Kh7 13. f3 Nd5 14. Bc5 Be6 15. Bf2 Bh3 16.
Nd1 e5 17. Qxc6 f5 18. Nc5 Rf6 19. Qa4 Rb6 20. Rc1 Rb4 21. Qc2 Qd6 22. Nb3 Qa6
23. Bc5 e4 24. Bxb4 Nxb4 25. Qc4 Qb6 26. dxe4 fxe4 27. Qxe4 Rd8 28. Nf2 Bg2 29.
Rg1 Nxa2 30. Rxg2 Nxc1 31. Nxc1 Qxb2 32. Nfd3 Qc3+ 33. Kf2 c5 34. Rg1 Rd4 35.
Qe7 Rd5 36. Nf4 Re5 37. Qf7 g5 38. Nh5 Qe3+ 39. Kg2 {Malakhatko,V (2548)
-Petrosian,T (2612) Dubai 2010 1-0}) 10. Nf3 {[%emt 0:02:02]} Bg4 {[%emt 0:00:
13]} 11. Ng5 {[%emt 0:10:22]} Nd5 {[%emt 0:00:09]} 12. Bd2 {[%emt 0:14:42]} O-O
{[%emt 0:00:13]} 13. f3 {[%emt 0:01:13]} Bc8 $146 {[%emt 0:00:07]} (13... Bf5
14. Nge4 Bd4 15. a3 Rb8 16. e3 Bg7 17. Qc2 Be6 18. Nf2 Qc8 19. Ke2 Qa6 20. Rhb1
f5 21. Na4 Bf7 22. Nc5 Qc8 23. a4 e5 24. Ra3 f4 25. e4 Nb4 26. Bxb4 Rxb4 27. g4
Rd8 28. Rc3 Rd6 29. b3 Qd8 30. Rg1 Kh7 31. Na6 Rb6 32. Nc5 a5 33. Rg2 Bf8 34.
Rg1 Rd4 35. Rb1 Rdb4 36. h3 Qd4 37. Kf1 Bxc5 38. Rxc5 Bxb3 39. Qc1 Bxa4 40.
Rxb4 Rxb4 41. Rxa5 Bb5 42. Qa3 c5 43. Qa2 {Penzold,A (2324)-Murawski,G (2362)
Germany 2003 0-1}) 14. Nge4 {[%emt 0:00:28]} Bd4 {[%emt 0:01:02]} 15. Nd1 {
[%emt 0:10:46]} Qd7 {[%emt 0:11:01]} 16. Qc4 {[%emt 0:07:01]} Nb6 {[%emt 0:26:
30]} 17. Qc2 {[%emt 0:02:07]} Nd5 {[%emt 0:15:19]} 18. Qc4 {[%emt 0:02:38]} Nb6
{[%emt 0:00:08]} 19. Qc2 {[%emt 0:00:06]} Nd5 {[%emt 0:01:04]} 20. Rc1 {
[%emt 0:12:01]} Rb8 {[%emt 0:02:56]} 21. Qc4 {[%emt 0:09:49]} Bxb2 {[%emt 0:12:
42]} 22. Nxb2 {[%emt 0:02:20]} Rxb2 {[%emt 0:00:07]} 23. Bh6 {[%emt 0:05:32]}
Rd8 {[%emt 0:01:47]} 24. Nc5 {[%emt 0:04:49]} Qd6 {[%emt 0:04:36]} 25. e4 {
[%emt 0:07:47]} Nb4 {[%emt 0:01:51]} 1/2-1/2